[Event "Titled Tuesday Blitz July 11 Late 2023"]
[White "Srinath, Rao S.V."]
[Black "Pranav, V"]
[WhiteFideId "5028876"]
[BlackFideId "25060783"]
[WhiteElo "2492"]
[BlackElo "2954"]
[Result "1/2-1/2"]
[Round "1"]
[TimeControl "180+2"]
[Date "2023.07.11"]
[WhiteClock "0:00:08"]
[BlackClock "0:00:03"]
[Board "27"]

1. e4 {[%clk 0:03:00]}  e5 {[%clk 0:02:59]} 2. Nf3 {[%clk 0:03:01]}  Nc6 {[%clk 0:03:00]} 3. Bc4 {[%clk 0:03:01]}  Nf6 {[%clk 0:03:00]} 4. d3 {[%clk 0:03:01]}  h6 {[%clk 0:03:00]} 5. Nc3 {[%clk 0:03:00]}  d6 {[%clk 0:03:01]} 6. a4 {[%clk 0:02:59]}  g5 {[%clk 0:03:00]} 7. Nd5 {[%clk 0:02:59]}  Bg7 {[%clk 0:02:58]} 8. h3 {[%clk 0:02:57]}  Be6 {[%clk 0:02:57]} 9. Nxf6+ {[%clk 0:02:54]}  Qxf6 {[%clk 0:02:57]} 10. Bxe6 {[%clk 0:02:55]}  fxe6 {[%clk 0:02:58]} 11. Be3 {[%clk 0:02:55]}  a6 {[%clk 0:02:54]} 12. c3 {[%clk 0:02:50]}  O-O-O {[%clk 0:02:38]} 13. b4 {[%clk 0:02:49]}  Ne7 {[%clk 0:02:35]} 14. Qb3 {[%clk 0:02:40]}  d5 {[%clk 0:02:29]} 15. a5 {[%clk 0:01:42]}  c6 {[%clk 0:02:17]} 16. c4 {[%clk 0:01:35]}  dxc4 {[%clk 0:01:51]} 17. dxc4 {[%clk 0:01:35]}  Qg6 {[%clk 0:01:49]} 18. Qc2 {[%clk 0:01:28]}  Kd7 {[%clk 0:01:33]} 19. Rd1+ {[%clk 0:01:08]}  Ke8 {[%clk 0:01:32]} 20. O-O {[%clk 0:01:08]}  Kf7 {[%clk 0:01:31]} 21. Bb6 {[%clk 0:01:06]}  Rxd1 {[%clk 0:01:06]} 22. Rxd1 {[%clk 0:01:07]}  h5 {[%clk 0:01:07]} 23. Rd7 {[%clk 0:00:57]}  g4 {[%clk 0:01:06]} 24. Nh4 {[%clk 0:00:54]}  Qf6 {[%clk 0:01:02]} 25. Bc5 {[%clk 0:00:51]}  Bf8 {[%clk 0:01:01]} 26. g3 {[%clk 0:00:46]}  gxh3 {[%clk 0:00:59]} 27. Qd1 {[%clk 0:00:42]}  Rh7 {[%clk 0:00:49]} 28. Rxb7 {[%clk 0:00:38]}  Kg8 {[%clk 0:00:48]} 29. Rb8 {[%clk 0:00:37]}  Qg5 {[%clk 0:00:35]} 30. Nf3 {[%clk 0:00:20]}  Qg4 {[%clk 0:00:28]} 31. Bxe7 {[%clk 0:00:10]}  Rxe7 {[%clk 0:00:28]} 32. Rxf8+ {[%clk 0:00:07]}  Kxf8 {[%clk 0:00:26]} 33. Qd8+ {[%clk 0:00:07]}  Re8 {[%clk 0:00:27]} 34. Qf6+ {[%clk 0:00:08]}  Kg8 {[%clk 0:00:27]} 35. Nxe5 {[%clk 0:00:08]}  Qd1+ {[%clk 0:00:05]} 36. Kh2 {[%clk 0:00:08]}  Rf8 {[%clk 0:00:05]} 37. Qg6+ {[%clk 0:00:08]}  Kh8 {[%clk 0:00:06]} 38. Qh6+ {[%clk 0:00:08]}  Kg8 {[%clk 0:00:06]} 39. Qg5+ {[%clk 0:00:08]}  Kh7 {[%clk 0:00:05]} 40. Qe7+ {[%clk 0:00:08]}  Kg8 {[%clk 0:00:05]} 41. Qxe6+ {[%clk 0:00:08]}  Kg7 {[%clk 0:00:04]} 42. Qe7+ {[%clk 0:00:08]}  Kg8 {[%clk 0:00:04]} 43. Qg5+ {[%clk 0:00:08]}  Kh7 {[%clk 0:00:05]} 44. Qg6+ {[%clk 0:00:08]}  Kh8 {[%clk 0:00:05]} 45. Qh6+ {[%clk 0:00:08]}  Kg8 {[%clk 0:00:05]} 46. Qe6+ {[%clk 0:00:08]}  Kg7 {[%clk 0:00:03]} 47. Qe7+ {[%clk 0:00:08]}  Kg8 {[%clk 0:00:03]} 48. Qe6+ {[%clk 0:00:08]} 1/2-1/2


[Site "https://www.chess.com"]

[Event "Titled Tuesday Blitz July 11 Late 2023"]
[White "Chigaev, Maksim"]
[Black "Urbina Perez, Juan Antonio"]
[WhiteFideId "4108116"]
[BlackFideId "2217368"]
[WhiteElo "2947"]
[BlackElo "2492"]
[Result "1-0"]
[Round "1"]
[TimeControl "180+2"]
[Date "2023.07.11"]
[WhiteClock "0:01:27"]
[BlackClock "0:01:22"]
[Board "28"]

1. e4 {[%clk 0:03:00]}  d5 {[%clk 0:02:58]} 2. exd5 {[%clk 0:03:00]}  Qxd5 {[%clk 0:02:59]} 3. Nc3 {[%clk 0:03:01]}  Qd8 {[%clk 0:02:59]} 4. Bc4 {[%clk 0:02:59]}  Nf6 {[%clk 0:02:59]} 5. Nf3 {[%clk 0:02:59]}  e6 {[%clk 0:02:58]} 6. d4 {[%clk 0:02:59]}  a6 {[%clk 0:02:57]} 7. a4 {[%clk 0:02:59]}  c5 {[%clk 0:02:57]} 8. d5 {[%clk 0:02:53]}  exd5 {[%clk 0:02:52]} 9. Nxd5 {[%clk 0:02:54]}  Nxd5 {[%clk 0:02:49]} 10. Bxd5 {[%clk 0:02:54]}  Be7 {[%clk 0:02:49]} 11. O-O {[%clk 0:02:52]}  O-O {[%clk 0:02:49]} 12. Bf4 {[%clk 0:02:51]}  Nc6 {[%clk 0:02:44]} 13. Re1 {[%clk 0:02:43]}  Nb4 {[%clk 0:02:35]} 14. Be4 {[%clk 0:02:39]}  Bf6 {[%clk 0:02:32]} 15. c3 {[%clk 0:02:35]}  Nc6 {[%clk 0:02:31]} 16. Qxd8 {[%clk 0:02:11]}  Rxd8 {[%clk 0:02:28]} 17. Bc7 {[%clk 0:02:11]}  Rf8 {[%clk 0:02:19]} 18. Bd6 {[%clk 0:02:11]}  Rd8 {[%clk 0:02:18]} 19. Bxc5 {[%clk 0:02:11]}  Be6 {[%clk 0:02:17]} 20. Bb6 {[%clk 0:02:06]}  Re8 {[%clk 0:02:11]} 21. a5 {[%clk 0:02:05]}  Bc4 {[%clk 0:02:03]} 22. h3 {[%clk 0:02:02]}  g6 {[%clk 0:02:01]} 23. Nd2 {[%clk 0:01:54]}  Be6 {[%clk 0:01:57]} 24. Bf3 {[%clk 0:01:55]}  Ne5 {[%clk 0:01:45]} 25. Bxb7 {[%clk 0:01:52]}  Rab8 {[%clk 0:01:40]} 26. Ne4 {[%clk 0:01:49]}  Bg7 {[%clk 0:01:35]} 27. Bxa6 {[%clk 0:01:49]}  Nc4 {[%clk 0:01:32]} 28. Bxc4 {[%clk 0:01:46]}  Bxc4 {[%clk 0:01:33]} 29. Nd6 {[%clk 0:01:46]}  Rxe1+ {[%clk 0:01:31]} 30. Rxe1 {[%clk 0:01:47]}  Bb3 {[%clk 0:01:30]} 31. Re8+ {[%clk 0:01:34]}  Rxe8 {[%clk 0:01:29]} 32. Nxe8 {[%clk 0:01:35]}  Bh6 {[%clk 0:01:26]} 33. a6 {[%clk 0:01:27]}  Bd5 {[%clk 0:01:22]} 34. Nf6+ {[%clk 0:01:27]} 1-0


[Site "https://www.chess.com"]

[Event "Titled Tuesday Blitz July 11 Late 2023"]
[White "Durarbayli, Vasif"]
[Black "Deng, Henry"]
[WhiteFideId "13402935"]
[BlackFideId "30965454"]
[WhiteElo "2928"]
[BlackElo "2485"]
[Result "0-1"]
[Round "1"]
[TimeControl "180+2"]
[Date "2023.07.11"]
[WhiteClock "0:00:19"]
[BlackClock "0:00:14"]
[Board "32"]

1. e4 {[%clk 0:03:00]}  c5 {[%clk 0:02:58]} 2. Nf3 {[%clk 0:03:00]}  e6 {[%clk 0:02:57]} 3. d4 {[%clk 0:03:01]}  cxd4 {[%clk 0:02:58]} 4. Nxd4 {[%clk 0:03:01]}  Nf6 {[%clk 0:02:58]} 5. Nc3 {[%clk 0:03:02]}  Nc6 {[%clk 0:02:57]} 6. Nxc6 {[%clk 0:03:02]}  bxc6 {[%clk 0:02:56]} 7. e5 {[%clk 0:03:03]}  Nd5 {[%clk 0:02:56]} 8. Ne4 {[%clk 0:03:04]}  Bb7 {[%clk 0:02:55]} 9. Nd6+ {[%clk 0:03:04]}  Bxd6 {[%clk 0:02:54]} 10. exd6 {[%clk 0:03:04]}  c5 {[%clk 0:02:35]} 11. c4 {[%clk 0:03:05]}  Nb4 {[%clk 0:02:34]} 12. a3 {[%clk 0:03:05]}  Nc6 {[%clk 0:02:34]} 13. Be3 {[%clk 0:03:06]}  Qf6 {[%clk 0:02:35]} 14. Qd2 {[%clk 0:03:06]}  Rb8 {[%clk 0:02:32]} 15. Bxc5 {[%clk 0:03:02]}  Ba6 {[%clk 0:02:12]} 16. Rb1 {[%clk 0:02:45]}  Qf5 {[%clk 0:02:00]} 17. Qd3 {[%clk 0:02:38]}  Qxc5 {[%clk 0:01:59]} 18. b4 {[%clk 0:02:38]}  Qe5+ {[%clk 0:01:47]} 19. Kd2 {[%clk 0:02:37]}  Qf4+ {[%clk 0:01:41]} 20. Kc3 {[%clk 0:02:37]}  Bb7 {[%clk 0:01:04]} 21. f3 {[%clk 0:02:23]}  O-O {[%clk 0:01:01]} 22. b5 {[%clk 0:02:11]}  Qf6+ {[%clk 0:00:54]} 23. Kd2 {[%clk 0:02:06]}  Ne5 {[%clk 0:00:54]} 24. Qe3 {[%clk 0:01:59]}  Rfc8 {[%clk 0:00:50]} 25. Rc1 {[%clk 0:01:59]}  a6 {[%clk 0:00:43]} 26. Be2 {[%clk 0:01:53]}  axb5 {[%clk 0:00:34]} 27. cxb5 {[%clk 0:01:54]}  Bd5 {[%clk 0:00:34]} 28. Rxc8+ {[%clk 0:01:45]}  Rxc8 {[%clk 0:00:35]} 29. Rc1 {[%clk 0:01:45]}  Rxc1 {[%clk 0:00:34]} 30. Kxc1 {[%clk 0:01:46]}  g6 {[%clk 0:00:32]} 31. f4 {[%clk 0:01:12]}  Nc4 {[%clk 0:00:30]} 32. Bxc4 {[%clk 0:01:12]}  Qa1+ {[%clk 0:00:26]} 33. Kd2 {[%clk 0:00:46]}  Bxc4 {[%clk 0:00:26]} 34. b6 {[%clk 0:00:47]}  Qb2+ {[%clk 0:00:26]} 35. Ke1 {[%clk 0:00:48]}  Qxg2 {[%clk 0:00:25]} 36. a4 {[%clk 0:00:47]}  Qa2 {[%clk 0:00:24]} 37. h4 {[%clk 0:00:36]}  Qxa4 {[%clk 0:00:24]} 38. Kf2 {[%clk 0:00:25]}  Qa2+ {[%clk 0:00:23]} 39. Kg3 {[%clk 0:00:25]}  Bd5 {[%clk 0:00:22]} 40. f5 {[%clk 0:00:21]}  Qg2+ {[%clk 0:00:18]} 41. Kf4 {[%clk 0:00:21]}  Qh2+ {[%clk 0:00:16]} 42. Kg5 {[%clk 0:00:21]}  h6+ {[%clk 0:00:15]} 43. Kf6 {[%clk 0:00:17]}  Qxh4+ {[%clk 0:00:15]} 44. Ke5 {[%clk 0:00:18]}  Qh2+ {[%clk 0:00:15]} 45. Kf6 {[%clk 0:00:18]}  Qh4+ {[%clk 0:00:14]} 46. Ke5 {[%clk 0:00:19]}  f6# {[%clk 0:00:14]} 0-1


[Site "https://www.chess.com"]

[Event "Titled Tuesday Blitz July 11 Late 2023"]
[White "Tang, Andrew"]
[Black "Martinez Reyes, Pedro Ramon"]
[WhiteFideId "2059630"]
[BlackFideId "3901807"]
[WhiteElo "2923"]
[BlackElo "2485"]
[Result "0-1"]
[Round "1"]
[TimeControl "180+2"]
[Date "2023.07.11"]
[WhiteClock "0:00:00"]
[BlackClock "0:00:08"]
[Board "34"]

1. d4 {[%clk 0:02:48]}  c5 {[%clk 0:02:59]} 2. d5 {[%clk 0:02:46]}  e5 {[%clk 0:02:59]} 3. c4 {[%clk 0:02:44]}  d6 {[%clk 0:03:00]} 4. Nc3 {[%clk 0:02:38]}  Nf6 {[%clk 0:03:00]} 5. e4 {[%clk 0:02:38]}  Be7 {[%clk 0:03:00]} 6. g3 {[%clk 0:02:39]}  Nbd7 {[%clk 0:02:59]} 7. Bg2 {[%clk 0:02:39]}  Nf8 {[%clk 0:02:59]} 8. Nge2 {[%clk 0:02:40]}  h5 {[%clk 0:02:58]} 9. O-O {[%clk 0:02:33]}  h4 {[%clk 0:02:56]} 10. f4 {[%clk 0:02:31]}  Ng6 {[%clk 0:02:53]} 11. Qd3 {[%clk 0:02:26]}  hxg3 {[%clk 0:02:51]} 12. hxg3 {[%clk 0:02:27]}  Ng4 {[%clk 0:02:38]} 13. Nd1 {[%clk 0:02:19]}  Bf6 {[%clk 0:02:34]} 14. Nf2 {[%clk 0:02:06]}  Nxf2 {[%clk 0:02:24]} 15. Rxf2 {[%clk 0:02:05]}  Bg4 {[%clk 0:02:24]} 16. Bd2 {[%clk 0:01:46]}  exf4 {[%clk 0:02:10]} 17. gxf4 {[%clk 0:01:45]}  Bxb2 {[%clk 0:02:07]} 18. Rb1 {[%clk 0:01:45]}  Bxe2 {[%clk 0:02:07]} 19. Qxe2 {[%clk 0:01:34]}  Bd4 {[%clk 0:02:07]} 20. Be3 {[%clk 0:01:35]}  Qh4 {[%clk 0:01:18]} 21. Bxd4 {[%clk 0:01:29]}  cxd4 {[%clk 0:01:13]} 22. Qd2 {[%clk 0:01:28]}  b6 {[%clk 0:01:03]} 23. Rb3 {[%clk 0:01:02]}  Qg4 {[%clk 0:00:40]} 24. Rd3 {[%clk 0:00:26]}  Rh4 {[%clk 0:00:34]} 25. Rdf3 {[%clk 0:00:18]}  Rc8 {[%clk 0:00:31]} 26. Qxd4 {[%clk 0:00:18]}  Kf8 {[%clk 0:00:27]} 27. Qd3 {[%clk 0:00:13]}  b5 {[%clk 0:00:23]} 28. Rg3 {[%clk 0:00:12]}  Qh5 {[%clk 0:00:21]} 29. Qa3 {[%clk 0:00:10]}  Rc5 {[%clk 0:00:12]} 30. Qxa7 {[%clk 0:00:10]}  Rxc4 {[%clk 0:00:11]} 31. Qb8+ {[%clk 0:00:09]}  Ke7 {[%clk 0:00:11]} 32. Qb7+ {[%clk 0:00:10]}  Kf8 {[%clk 0:00:12]} 33. Qxb5 {[%clk 0:00:09]}  Rc1+ {[%clk 0:00:11]} 34. Rf1 {[%clk 0:00:10]}  Rxf1+ {[%clk 0:00:11]} 35. Qxf1 {[%clk 0:00:10]}  Nxf4 {[%clk 0:00:11]} 36. Bf3 {[%clk 0:00:04]}  Qh6 {[%clk 0:00:10]} 37. Qc1 {[%clk 0:00:00]}  Ne2+ {[%clk 0:00:08]} 0-1


[Site "https://www.chess.com"]

[Event "Titled Tuesday Blitz July 11 Late 2023"]
[White "Eljanov, Pavel"]
[Black "Merino Garcia, Rafael II"]
[WhiteFideId "14102951"]
[BlackFideId "2209128"]
[WhiteElo "2918"]
[BlackElo "2484"]
[Result "0-1"]
[Round "1"]
[TimeControl "180+2"]
[Date "2023.07.11"]
[WhiteClock "0:00:00"]
[BlackClock "0:00:20"]
[Board "36"]

1. e4 {[%clk 0:02:58]}  d6 {[%clk 0:02:58]} 2. d4 {[%clk 0:02:57]}  Nd7 {[%clk 0:02:58]} 3. Nc3 {[%clk 0:02:55]}  g6 {[%clk 0:02:58]} 4. Be3 {[%clk 0:02:46]}  Bg7 {[%clk 0:02:58]} 5. Qd3 {[%clk 0:02:45]}  a6 {[%clk 0:02:57]} 6. a4 {[%clk 0:02:34]}  b6 {[%clk 0:02:57]} 7. f4 {[%clk 0:02:28]}  Bb7 {[%clk 0:02:56]} 8. Nf3 {[%clk 0:02:28]}  e6 {[%clk 0:02:52]} 9. Be2 {[%clk 0:01:53]}  Ne7 {[%clk 0:02:52]} 10. O-O {[%clk 0:01:53]}  O-O {[%clk 0:02:52]} 11. Qd2 {[%clk 0:01:46]}  Nf6 {[%clk 0:02:49]} 12. Bd3 {[%clk 0:01:45]}  Ng4 {[%clk 0:02:48]} 13. Ne2 {[%clk 0:01:26]}  c5 {[%clk 0:02:42]} 14. c3 {[%clk 0:01:25]}  f5 {[%clk 0:02:22]} 15. Ng5 {[%clk 0:01:16]}  Qd7 {[%clk 0:02:13]} 16. Kh1 {[%clk 0:01:09]}  h6 {[%clk 0:02:07]} 17. exf5 {[%clk 0:00:50]}  hxg5 {[%clk 0:01:56]} 18. fxg6 {[%clk 0:00:44]}  Qc6 {[%clk 0:01:43]} 19. Rf3 {[%clk 0:00:33]}  Nf5 {[%clk 0:01:30]} 20. Bxf5 {[%clk 0:00:31]}  Rxf5 {[%clk 0:01:28]} 21. h3 {[%clk 0:00:26]}  Nxe3 {[%clk 0:01:22]} 22. Qxe3 {[%clk 0:00:26]}  Re8 {[%clk 0:01:22]} 23. Raf1 {[%clk 0:00:21]}  cxd4 {[%clk 0:01:19]} 24. cxd4 {[%clk 0:00:16]}  Qe4 {[%clk 0:01:18]} 25. Qf2 {[%clk 0:00:16]}  gxf4 {[%clk 0:01:12]} 26. Nxf4 {[%clk 0:00:08]}  Qxd4 {[%clk 0:01:02]} 27. Qh4 {[%clk 0:00:08]}  Bxf3 {[%clk 0:00:59]} 28. Rxf3 {[%clk 0:00:08]}  Qd1+ {[%clk 0:00:55]} 29. Kh2 {[%clk 0:00:08]}  Qc2 {[%clk 0:00:23]} 30. Nxe6 {[%clk 0:00:00]}  Be5+ {[%clk 0:00:20]} 0-1


[Site "https://www.chess.com"]

[Event "Titled Tuesday Blitz July 11 Late 2023"]
[White "Rustemov, Alexander"]
[Black "Sliwicki, Damian"]
[WhiteFideId "4119002"]
[BlackFideId "1127128"]
[WhiteElo "2913"]
[BlackElo "2473"]
[Result "1-0"]
[Round "1"]
[TimeControl "180+2"]
[Date "2023.07.11"]
[WhiteClock "0:01:26"]
[BlackClock "0:00:00"]
[Board "40"]

1. d4 {[%clk 0:03:00]}  Nf6 {[%clk 0:02:52]} 2. c4 {[%clk 0:03:01]}  e6 {[%clk 0:02:51]} 3. Nf3 {[%clk 0:03:01]}  Bb4+ {[%clk 0:02:46]} 4. Bd2 {[%clk 0:03:00]}  Qe7 {[%clk 0:02:22]} 5. g3 {[%clk 0:03:01]}  Bxd2+ {[%clk 0:02:19]} 6. Qxd2 {[%clk 0:03:00]}  d6 {[%clk 0:02:20]} 7. Nc3 {[%clk 0:03:00]}  O-O {[%clk 0:02:21]} 8. Bg2 {[%clk 0:03:00]}  e5 {[%clk 0:02:19]} 9. O-O {[%clk 0:02:58]}  c6 {[%clk 0:02:15]} 10. e4 {[%clk 0:02:57]}  Bg4 {[%clk 0:02:11]} 11. Ne1 {[%clk 0:02:52]}  exd4 {[%clk 0:02:09]} 12. Qxd4 {[%clk 0:02:51]}  Qe5 {[%clk 0:02:06]} 13. Nc2 {[%clk 0:02:49]}  Nbd7 {[%clk 0:01:57]} 14. h3 {[%clk 0:02:48]}  Be6 {[%clk 0:01:56]} 15. b3 {[%clk 0:02:44]}  Rad8 {[%clk 0:01:49]} 16. Rad1 {[%clk 0:02:44]}  Nc5 {[%clk 0:01:31]} 17. f4 {[%clk 0:02:38]}  Qxd4+ {[%clk 0:01:31]} 18. Rxd4 {[%clk 0:02:35]}  d5 {[%clk 0:01:23]} 19. f5 {[%clk 0:02:22]}  Bc8 {[%clk 0:01:21]} 20. exd5 {[%clk 0:02:21]}  cxd5 {[%clk 0:01:20]} 21. Nxd5 {[%clk 0:02:18]}  Nxd5 {[%clk 0:01:19]} 22. Bxd5 {[%clk 0:02:16]}  Rfe8 {[%clk 0:01:18]} 23. g4 {[%clk 0:02:14]}  b6 {[%clk 0:01:13]} 24. Rfd1 {[%clk 0:02:13]}  Kf8 {[%clk 0:01:11]} 25. Kf2 {[%clk 0:02:12]}  g6 {[%clk 0:01:09]} 26. Ne3 {[%clk 0:02:11]}  a5 {[%clk 0:01:03]} 27. Bc6 {[%clk 0:02:07]}  Rxd4 {[%clk 0:00:59]} 28. Rxd4 {[%clk 0:02:08]}  Bd7 {[%clk 0:00:53]} 29. Rxd7 {[%clk 0:02:02]}  Nxd7 {[%clk 0:00:51]} 30. Bxd7 {[%clk 0:02:03]}  Rd8 {[%clk 0:00:51]} 31. Ba4 {[%clk 0:02:03]}  Rd2+ {[%clk 0:00:51]} 32. Kg3 {[%clk 0:02:02]}  Rxa2 {[%clk 0:00:47]} 33. Nd5 {[%clk 0:02:00]}  gxf5 {[%clk 0:00:20]} 34. gxf5 {[%clk 0:02:00]}  h5 {[%clk 0:00:21]} 35. Nxb6 {[%clk 0:01:55]}  Ke7 {[%clk 0:00:22]} 36. c5 {[%clk 0:01:46]}  Rc2 {[%clk 0:00:21]} 37. Nc4 {[%clk 0:01:45]}  Kd8 {[%clk 0:00:08]} 38. Nxa5 {[%clk 0:01:43]}  Rc3+ {[%clk 0:00:04]} 39. Kh4 {[%clk 0:01:41]}  Kc7 {[%clk 0:00:02]} 40. Nc4 {[%clk 0:01:40]}  Rf3 {[%clk 0:00:02]} 41. Nd6 {[%clk 0:01:34]}  Rf4+ {[%clk 0:00:02]} 42. Kxh5 {[%clk 0:01:33]}  Rf3 {[%clk 0:00:03]} 43. Kg4 {[%clk 0:01:32]}  Rf1 {[%clk 0:00:02]} 44. Nxf7 {[%clk 0:01:31]}  Rg1+ {[%clk 0:00:02]} 45. Kf4 {[%clk 0:01:30]}  Kb8 {[%clk 0:00:02]} 46. f6 {[%clk 0:01:28]}  Rf1+ {[%clk 0:00:03]} 47. Ke5 {[%clk 0:01:28]}  Re1+ {[%clk 0:00:03]} 48. Kf5 {[%clk 0:01:28]}  Rf1+ {[%clk 0:00:03]} 49. Ke6 {[%clk 0:01:29]}  Re1+ {[%clk 0:00:03]} 50. Ne5 {[%clk 0:01:29]}  Ka7 {[%clk 0:00:02]} 51. f7 {[%clk 0:01:29]}  Rf1 {[%clk 0:00:02]} 52. Ke7 {[%clk 0:01:28]}  Rf5 {[%clk 0:00:02]} 53. f8=Q {[%clk 0:01:27]}  Rxe5+ {[%clk 0:00:00]} 54. Kd6 {[%clk 0:01:26]} 1-0


[Site "https://www.chess.com"]

[Event "Titled Tuesday Blitz July 11 Late 2023"]
[White "Zhigalko, Sergei"]
[Black "Luong Phuong Hanh"]
[WhiteFideId "13502956"]
[BlackFideId "12401013"]
[WhiteElo "2877"]
[BlackElo "2472"]
[Result "1-0"]
[Round "1"]
[TimeControl "180+2"]
[Date "2023.07.11"]
[WhiteClock "0:00:21"]
[BlackClock "0:00:08"]
[Board "42"]

1. e4 {[%clk 0:03:00]}  c5 {[%clk 0:02:57]} 2. Nf3 {[%clk 0:03:00]}  e6 {[%clk 0:02:57]} 3. c3 {[%clk 0:03:00]}  Nf6 {[%clk 0:02:56]} 4. e5 {[%clk 0:03:01]}  Nd5 {[%clk 0:02:57]} 5. Bc4 {[%clk 0:03:02]}  Nb6 {[%clk 0:02:56]} 6. Bb3 {[%clk 0:03:02]}  d5 {[%clk 0:02:57]} 7. exd6 {[%clk 0:03:02]}  Bxd6 {[%clk 0:02:56]} 8. d4 {[%clk 0:03:03]}  O-O {[%clk 0:02:56]} 9. O-O {[%clk 0:03:03]}  Nc6 {[%clk 0:02:54]} 10. Re1 {[%clk 0:03:03]}  Qc7 {[%clk 0:02:49]} 11. Nbd2 {[%clk 0:02:55]}  cxd4 {[%clk 0:02:48]} 12. cxd4 {[%clk 0:02:55]}  Bf4 {[%clk 0:02:46]} 13. Ne4 {[%clk 0:02:53]}  Rd8 {[%clk 0:02:37]} 14. Be3 {[%clk 0:02:49]}  Bxe3 {[%clk 0:02:36]} 15. fxe3 {[%clk 0:02:49]}  Qe7 {[%clk 0:02:36]} 16. Rc1 {[%clk 0:02:47]}  Bd7 {[%clk 0:02:35]} 17. Nc5 {[%clk 0:02:47]}  Rab8 {[%clk 0:02:35]} 18. Qe2 {[%clk 0:02:39]}  Na5 {[%clk 0:02:33]} 19. Bc2 {[%clk 0:02:39]}  Nd5 {[%clk 0:02:13]} 20. Ne5 {[%clk 0:02:32]}  Be8 {[%clk 0:02:03]} 21. Rf1 {[%clk 0:02:11]}  Nc6 {[%clk 0:01:58]} 22. Nxc6 {[%clk 0:01:40]}  Bxc6 {[%clk 0:01:54]} 23. Nd3 {[%clk 0:01:28]}  Qg5 {[%clk 0:01:43]} 24. Rf3 {[%clk 0:01:22]}  Qh5 {[%clk 0:01:29]} 25. Qf2 {[%clk 0:01:08]}  Nf6 {[%clk 0:01:18]} 26. Rh3 {[%clk 0:01:04]}  Qg5 {[%clk 0:01:05]} 27. Ne5 {[%clk 0:01:03]}  h5 {[%clk 0:00:41]} 28. Rf1 {[%clk 0:00:55]}  Rf8 {[%clk 0:00:38]} 29. Rg3 {[%clk 0:00:31]}  Ng4 {[%clk 0:00:33]} 30. Qe1 {[%clk 0:00:31]}  Qh4 {[%clk 0:00:13]} 31. h3 {[%clk 0:00:26]}  Nxe5 {[%clk 0:00:12]} 32. Rxg7+ {[%clk 0:00:24]}  Kxg7 {[%clk 0:00:11]} 33. Qxh4 {[%clk 0:00:25]}  Ng6 {[%clk 0:00:11]} 34. Qf6+ {[%clk 0:00:24]}  Kh6 {[%clk 0:00:10]} 35. Bxg6 {[%clk 0:00:24]}  fxg6 {[%clk 0:00:11]} 36. Qxf8+ {[%clk 0:00:24]}  Rxf8 {[%clk 0:00:11]} 37. Rxf8 {[%clk 0:00:25]}  Bd5 {[%clk 0:00:11]} 38. a3 {[%clk 0:00:25]}  a5 {[%clk 0:00:08]} 39. h4 {[%clk 0:00:21]} 1-0


[Site "https://www.chess.com"]

[Event "Titled Tuesday Blitz July 11 Late 2023"]
[White "Bochnicka, Vladimir"]
[Black "Troff, Kayden"]
[WhiteFideId "14943450"]
[BlackFideId "2047896"]
[WhiteElo "2452"]
[BlackElo "2805"]
[Result "0-1"]
[Round "1"]
[TimeControl "180+2"]
[Date "2023.07.11"]
[WhiteClock "0:00:16"]
[BlackClock "0:00:15"]
[Board "53"]

1. e4 {[%clk 0:02:46]}  c5 {[%clk 0:02:59]} 2. Nf3 {[%clk 0:02:46]}  g6 {[%clk 0:02:58]} 3. d4 {[%clk 0:02:44]}  cxd4 {[%clk 0:02:58]} 4. Nxd4 {[%clk 0:02:45]}  Bg7 {[%clk 0:02:57]} 5. c4 {[%clk 0:02:43]}  Qb6 {[%clk 0:02:51]} 6. Nb3 {[%clk 0:02:34]}  a5 {[%clk 0:02:38]} 7. Be3 {[%clk 0:02:31]}  Qb4+ {[%clk 0:02:38]} 8. Bd2 {[%clk 0:02:13]}  Qd6 {[%clk 0:02:36]} 9. Nc3 {[%clk 0:02:09]}  a4 {[%clk 0:02:32]} 10. Nb5 {[%clk 0:02:01]}  Qc6 {[%clk 0:02:23]} 11. N3d4 {[%clk 0:01:47]}  Qxe4+ {[%clk 0:02:16]} 12. Be3 {[%clk 0:01:47]}  Na6 {[%clk 0:02:09]} 13. Qxa4 {[%clk 0:01:27]}  Nf6 {[%clk 0:01:59]} 14. Qc2 {[%clk 0:01:24]}  O-O {[%clk 0:01:49]} 15. Qxe4 {[%clk 0:01:22]}  Nxe4 {[%clk 0:01:50]} 16. Bd3 {[%clk 0:01:23]}  Nec5 {[%clk 0:01:48]} 17. Be2 {[%clk 0:01:21]}  Nb4 {[%clk 0:01:28]} 18. O-O {[%clk 0:01:17]}  Rxa2 {[%clk 0:01:12]} 19. Rxa2 {[%clk 0:01:15]}  Nxa2 {[%clk 0:01:12]} 20. Bd2 {[%clk 0:01:12]}  Ne4 {[%clk 0:01:00]} 21. Ba5 {[%clk 0:01:05]}  b6 {[%clk 0:00:48]} 22. Bxb6 {[%clk 0:01:04]}  Nb4 {[%clk 0:00:48]} 23. Ra1 {[%clk 0:00:58]}  Nc6 {[%clk 0:00:44]} 24. Bf3 {[%clk 0:00:55]}  Nxd4 {[%clk 0:00:41]} 25. Bxd4 {[%clk 0:00:53]}  Nd2 {[%clk 0:00:40]} 26. Bxg7 {[%clk 0:00:38]}  Nxf3+ {[%clk 0:00:40]} 27. gxf3 {[%clk 0:00:39]}  Kxg7 {[%clk 0:00:40]} 28. b4 {[%clk 0:00:37]}  d6 {[%clk 0:00:39]} 29. Ra7 {[%clk 0:00:35]}  Be6 {[%clk 0:00:18]} 30. Rxe7 {[%clk 0:00:31]}  Bxc4 {[%clk 0:00:17]} 31. Nxd6 {[%clk 0:00:31]}  Bd5 {[%clk 0:00:18]} 32. Kg2 {[%clk 0:00:27]}  Kf6 {[%clk 0:00:18]} 33. Rc7 {[%clk 0:00:26]}  Ke6 {[%clk 0:00:18]} 34. Ne4 {[%clk 0:00:26]}  Rb8 {[%clk 0:00:17]} 35. Nc5+ {[%clk 0:00:24]}  Kd6 {[%clk 0:00:18]} 36. Rd7+ {[%clk 0:00:24]}  Kc6 {[%clk 0:00:18]} 37. Rxf7 {[%clk 0:00:23]}  Bxf7 {[%clk 0:00:17]} 38. Nd3 {[%clk 0:00:22]}  Bd5 {[%clk 0:00:17]} 39. Kg3 {[%clk 0:00:21]}  Kd6 {[%clk 0:00:17]} 40. Kf4 {[%clk 0:00:21]}  Rf8+ {[%clk 0:00:17]} 41. Kg5 {[%clk 0:00:21]}  Rxf3 {[%clk 0:00:17]} 42. Nf4 {[%clk 0:00:21]}  Rxf2 {[%clk 0:00:16]} 43. h4 {[%clk 0:00:20]}  Rb2 {[%clk 0:00:15]} 44. Kh6 {[%clk 0:00:16]}  Be4 {[%clk 0:00:15]} 0-1


[Site "https://www.chess.com"]